[Event "SVK Extraliga 2017-18"]
[Site "Slovakia"]
[Date "2017.10.01"]
[Round "2"]
[White "Urhegyi, Marton"]
[Black "Krak, Tomas"]
[Result "1/2-1/2"]
[ECO "C04"]
[WhiteElo "2256"]
[BlackElo "2312"]
[Annotator "NA"]
[PlyCount "34"]
[EventDate "2017.09.30"]
[EventType "team-tourn"]
[EventCountry "SVK"]
[SourceTitle "playchess.com"]
[Source "ChessBase"]
[SourceQuality "1"]
[TimeControl "40/5400+30:1800+30"]

1. e4 {[%emt 0:00:00]} e6 {[%emt 0:00:25]} 2. d4 {[%emt 0:00:00]} d5 {[%emt 0:00:05]} 3. Nd2 {[%emt 0:00:00]} Nc6 {[%emt 0:00:30]} 4. Ngf3 {[%emt 0:01:53]} Nf6 {[%emt 0:00:07]} 5. e5 {[%emt 0:01:04]} Nd7 {[%emt 0:00:18]} 6. Nb3 {[%emt 0:00:44]} f6 {[%emt 0:00:46]} 7. exf6 {[%emt 0:01:45]} Qxf6 {[%emt 0:00:52]} 8. Bg5 {[%emt 0:08:51]} Qf7 {[%emt 0:05:10]} 9. Bh4 {[%emt 0:02:02]} Bd6 {[%emt 0:03:51]} 10. Bd3 {[%emt 0:15:23]} h6 {[%emt 0:09:17]} 11. Bg3 {[%emt 0:08:18]} O-O {[%emt 0:04:30]} 12. O-O {[%emt 0:05:53]} e5 {[%emt 0:05:06]} 13. dxe5 {[%emt 0:01:14]} Ndxe5 {[%emt 0:01:23]} 14. Nxe5 {[%emt 0:04:14]} Nxe5 {[%emt 0:04:30]} 15. Be2 {[%emt 0:05:10]} Be6 {[%emt 0:18:46]} 16. Nd4 {[%emt 0:03:55]} Bd7 {[%emt 0:00:28]} 17. Nb5 {[%emt 0:05:49]} Bxb5 {[%emt 0:00:23]} 1/2-1/2

[Event "SVK Extraliga 2017-18"]
[Site "Slovakia"]
[Date "2017.10.01"]
[Round "2"]
[White "Banas, Kamil"]
[Black "Petran, Peter"]
[Result "1-0"]
[ECO "B06"]
[WhiteElo "2247"]
[BlackElo "2318"]
[Annotator "NA"]
[PlyCount "77"]
[EventDate "2017.09.30"]
[EventType "team-tourn"]
[EventCountry "SVK"]
[SourceTitle "playchess.com"]
[Source "ChessBase"]
[SourceQuality "1"]
[TimeControl "40/5400+30:1800+30"]

1. e4 {[%emt 0:00:00]} g6 {[%emt 0:00:16]} 2. d4 {[%emt 0:00:00]} Bg7 {[%emt 0:00:09]} 3. Nc3 {[%emt 0:00:27]} c6 {[%emt 0:00:17]} 4. f4 {[%emt 0:00:37]} d5 {[%emt 0:00:05]} 5. e5 {[%emt 0:00:49]} Nh6 {[%emt 0:00:06]} 6. Nf3 {[%emt 0:00:59]} O-O {[%emt 0:00:07]} 7. Be3 {[%emt 0:00:59]} Bg4 {[%emt 0:00:24]} 8. Be2 {[%emt 0:00:51]} f6 {[%emt 0:00:09]} 9. Qd2 {[%emt 0:01:44] B15: Caro-Kann: 3 Nc3: 3...g6 and 3...dxe4 4 Nxe4 Nf6 5 Nxf6+ exf6} Nd7 {[%emt 0:00:57]} 10. O-O-O {[%emt 0:01:20]} Nf5 {[%emt 0:01:49]} 11. Kb1 {[%emt 0:01:36]} Bxf3 $146 {[%emt 0:00:59]} ({Predecessor:} 11... Bh6 12. Ng5 Bxe2 13. Ne6 Qc8 14. Qxe2 Rf7 15. Bc1 fxe5 16. fxe5 Nf8 17. Nxf8 Qxf8 {1-0 (33) Zumsande,M (2442)-Krasenkow,M (2610) Stockholm 2016}) 12. Bxf3 {[%emt 0:00:23]} fxe5 {[%emt 0:00:09]} 13. dxe5 {[%emt 0:03:20]} Nxe3 {[%emt 0:02:12]} 14. Qxe3 {[%emt 0:00:20]} e6 {[%emt 0:00:03]} 15. h4 {[%emt 0:05:27]} Qe7 {[%emt 0:01:42]} 16. Bg4 {[%emt 0:09:28]} Rae8 {[%emt 0:01:37]} 17. Ne2 {[%emt 0:08:23]} c5 {[%emt 0:00:52]} 18. Qh3 {[%emt 0:06:07]} h5 {[%emt 0:04:06]} 19. Bf3 {[%emt 0:01:57]} Qf7 {[%emt 0:00:08]} 20. Rhf1 {[%emt 0:03:26]} Kh8 {[%emt 0:14:57]} 21. g4 {[%emt 0:01:48]} Re7 {[%emt 0:03:52]} 22. gxh5 {[%emt 0:14:47]} gxh5 {[%emt 0:00:11]} 23. Rd3 {[%emt 0:07:11]} Bh6 {[%emt 0:04:54]} 24. Rg1 {[%emt 0:05:50]} Qf5 {[%emt 0:08:06]} 25. Qh1 $17 {[%emt 0:03:45]} Rg7 {[%emt 0:04:43]} 26. Rg5 {[%emt 0:06:42]} Bxg5 {[%emt 0:02:26]} 27. hxg5 {[%emt 0:00:02]} Nxe5 {[%emt 0:02:13]} 28. Bxh5 {[%emt 0:02:29]} Kg8 {[%emt 0:06:14]} 29. Rh3 {[%emt 0:04:18]} Ng6 {[%emt 0:02:15]} 30. Ng3 {[%emt 0:00:43]} Qf7 {[%emt 0:08:08]} 31. f5 {[%emt 0:00:28]} exf5 {[%emt 0:08:33]} 32. Bxg6 {[%emt 0:00:08]} Qxg6 {[%emt 0:00:44]} 33. Rh8+ {[%emt 0:07:05]} Kf7 {[%emt 0:00:05]} 34. Qxd5+ {[%emt 0:00:04]} Ke7 {[%emt 0:00:17]} 35. Rh6 {[%emt 0:00:25]} Rd8 {[%emt 0:02:40]} 36. Qe5+ {[%emt 0:02:04]} Kf7 {[%emt 0:01:25]} 37. b3 {[%emt 0:00:10]} Qxg5 {[%emt 0:01:47]} 38. Qe6+ {[%emt 0:00:03]} Kf8 {[%emt 0:00:08]} 39. Rf6+ {[%emt 0:00:04]} 1-0

[Event "SVK Extraliga 2017-18"]
[Site "Slovakia"]
[Date "2017.10.01"]
[Round "2"]
[White "Haring, Filip"]
[Black "Pinter, Erik"]
[Result "1-0"]
[ECO "B35"]
[WhiteElo "2232"]
[BlackElo "2393"]
[Annotator "NA"]
[PlyCount "77"]
[EventDate "2017.09.30"]
[EventType "team-tourn"]
[EventCountry "SVK"]
[SourceTitle "playchess.com"]
[Source "ChessBase"]
[SourceQuality "1"]
[TimeControl "40/5400+30:1800+30"]

1. e4 {[%emt 0:00:00]} c5 {[%emt 0:00:16]} 2. Nf3 {[%emt 0:00:00]} Nc6 {[%emt 0:00:07]} 3. d4 {[%emt 0:00:00]} cxd4 {[%emt 0:00:03]} 4. Nxd4 {[%emt 0:00:00]} g6 {[%emt 0:00:04]} 5. Nc3 {[%emt 0:00:13]} Bg7 {[%emt 0:00:05]} 6. Be3 {[%emt 0:00:11]} Nf6 {[%emt 0:00:06]} 7. Bc4 {[%emt 0:00:13]} O-O {[%emt 0:00:08]} 8. Bb3 {[%emt 0:00:15]} d6 {[%emt 0:00:04]} 9. f3 {[%emt 0:00:19]} Bd7 {[%emt 0:00:04]} 10. Qd2 {[%emt 0:00:08]} Nxd4 {[%emt 0:00:13]} 11. Bxd4 {[%emt 0:00:11]} b5 {[%emt 0:00:07]} 12. a4 {[%emt 0:00:47]} bxa4 {[%emt 0:00:05] B77: Sicilian Dragon: Yugoslav Attack, 9 Bc4 sidelines} (12... b4 13. Nd5 Nxd5 14. Bxg7 Kxg7 15. exd5 Qb6 16. h4 h5 17. O-O-O Qa5 18. g4 Bxa4 19. Kb1 Bxb3 20. cxb3 {0-1 (33) Vachier Lagrave,M (2796)-Giri,A (2771) Stavanger 2017}) 13. Bxa4 {[%emt 0:02:33]} Rb8 {[%emt 0:16:43]} 14. Bb3 {[%emt 0:08:34]} Be6 {[%emt 0:05:22]} 15. Bxe6 {[%emt 0:05:39]} fxe6 {[%emt 0:00:09]} 16. b3 $146 {[%emt 0:03:32]} ({Predecessor:} 16. Ra2 a5 17. O-O Rb4 18. Ne2 e5 19. Bc3 {½-½ (72) Zambrana,O (2480)-Fier,A (2601) Campinas 2010}) 16... a5 {[%emt 0:11:48]} 17. O-O {[%emt 0:01:26]} Qc7 {[%emt 0:22:26]} 18. Ne2 {[%emt 0:12:20]} Rfc8 {[%emt 0:02:10]} 19. Rfc1 {[%emt 0:02:40]} Rb4 {[%emt 0:05:27]} 20. Kh1 {[%emt 0:11:49]} Nd7 {[%emt 0:15:27]} 21. Bxg7 {[%emt 0:15:08]} Kxg7 {[%emt 0:00:21]} 22. Qg5 {[%emt 0:00:19]} Nc5 {[%emt 0:05:50]} 23. Nf4 {[%emt 0:00:31]} Rf8 {[%emt 0:02:10]} 24. Qxc5 $1 {[%emt 0:05:42]} Qxc5 {[%emt 0:02:51]} 25. Nxe6+ {[%emt 0:00:05]} Kf7 {[%emt 0:02:17]} 26. Nxc5 {[%emt 0:00:05]} dxc5 {[%emt 0:00:05]} 27. Rxa5 {[%emt 0:00:11]} Rc8 {[%emt 0:02:33]} 28. Kg1 {[%emt 0:03:20]} Rd4 {[%emt 0:00:13]} 29. Kf2 {[%emt 0:01:36]} Rd2+ $18 {[%emt 0:01:02]} 30. Kg3 {[%emt 0:03:46]} c4 {[%emt 0:00:13]} 31. b4 {[%emt 0:04:30]} c3 {[%emt 0:00:27]} 32. Ra3 {[%emt 0:03:29]} Ke6 {[%emt 0:02:09]} 33. Rb3 {[%emt 0:04:35]} Kd7 {[%emt 0:00:58]} 34. b5 {[%emt 0:01:33]} Rc5 {[%emt 0:02:26]} 35. b6 {[%emt 0:00:55]} h6 {[%emt 0:02:58]} 36. h4 {[%emt 0:01:09]} Rc8 {[%emt 0:00:32]} 37. b7 {[%emt 0:00:26]} Rb8 {[%emt 0:00:04]} 38. Rxc3 {[%emt 0:00:51]} Rxb7 {[%emt 0:00:05]} 39. Rd3+ {[%emt 0:00:10]} 1-0

[Event "SVK Extraliga 2017-18"]
[Site "Slovakia"]
[Date "2017.10.01"]
[Round "2"]
[White "Veres, Andrej"]
[Black "Kusiak, Matej"]
[Result "0-1"]
[ECO "A40"]
[WhiteElo "2232"]
[BlackElo "2301"]
[Annotator "NA"]
[PlyCount "118"]
[EventDate "2017.09.30"]
[EventType "team-tourn"]
[EventCountry "SVK"]
[SourceTitle "playchess.com"]
[Source "ChessBase"]
[SourceQuality "1"]
[TimeControl "40/5400+30:1800+30"]

1. d4 {[%emt 0:03:37]} g6 {[%emt 0:00:11]} 2. Nf3 {[%emt 0:00:27]} Bg7 {[%emt 0:00:07]} 3. c4 {[%emt 0:00:45]} d6 {[%emt 0:00:04]} 4. Nc3 {[%emt 0:06:08]} e5 {[%emt 0:00:19]} 5. dxe5 {[%emt 0:06:44]} dxe5 {[%emt 0:02:10]} 6. Qxd8+ {[%emt 0:02:03]} Kxd8 {[%emt 0:00:06]} 7. Bg5+ {[%emt 0:00:43]} f6 {[%emt 0:03:58]} 8. O-O-O+ {[%emt 0:01:53]} Ke8 {[%emt 0:00:42] A41: 1 d4 d6: Tartakower System and Modern Defence} 9. Bd2 {[%emt 0:04:44]} Be6 {[%emt 0:02:02]} 10. e4 {[%emt 0:00:58]} (10. e3 Nh6 11. Bd3 Nf7 12. h4 Nd7 13. b3 Nc5 14. Bc2 c6 15. h5 f5 16. Nh4 {1-0 (80) Granda Zuniga,J (2688)-Del Rio de Angelis,S (2556) Atarrabia 2016}) 10... c6 {[%emt 0:03:13]} 11. Be2 {[%emt 0:06:04]} Nd7 {[%emt 0:02:26]} 12. Ne1 $146 {[%emt 0:05:50]} ({Predecessor:} 12. Be3 Bh6 13. Bxh6 Nxh6 14. b3 Ke7 15. Rd2 Rhd8 16. Rhd1 {½-½ (31) Schmidt,J (2265)-Michna,M (2396) Germany 2012}) 12... Bh6 {[%emt 0:03:16]} 13. g3 {[%emt 0:04:05]} Bxd2+ {[%emt 0:02:47]} 14. Rxd2 {[%emt 0:00:11]} Nh6 {[%emt 0:00:30]} 15. f4 {[%emt 0:02:47]} Ke7 {[%emt 0:00:47]} 16. Nc2 {[%emt 0:03:58]} Rad8 {[%emt 0:08:26]} 17. Rhd1 {[%emt 0:05:48]} Ng4 {[%emt 0:02:37]} 18. Nd5+ {[%emt 0:02:31]} cxd5 {[%emt 0:08:05]} 19. cxd5 {[%emt 0:00:39]} Nf2 {[%emt 0:01:15]} 20. dxe6 {[%emt 0:00:01]} Nc5 {[%emt 0:07:27]} 21. Rxd8 {[%emt 0:22:08]} Rxd8 {[%emt 0:00:05]} 22. Rxd8 {[%emt 0:03:52]} Kxd8 $11 {[%emt 0:00:05]} 23. Bc4 {[%emt 0:01:07]} exf4 {[%emt 0:00:47]} 24. gxf4 {[%emt 0:01:30]} Nfd3+ {[%emt 0:00:27]} 25. Kd2 {[%emt 0:04:04]} Nxf4 {[%emt 0:00:33]} 26. Bd5 {[%emt 0:03:29]} Ncxe6 {[%emt 0:20:28]} 27. Bxb7 {[%emt 0:00:49]} Kc7 {[%emt 0:00:16]} 28. Ba6 {[%emt 0:01:45]} Kd6 {[%emt 0:06:06]} 29. Bf1 {[%emt 0:02:36]} g5 {[%emt 0:06:03]} 30. b4 {[%emt 0:01:30]} h5 {[%emt 0:00:54]} 31. Na3 {[%emt 0:01:17]} Nd4 {[%emt 0:06:08]} 32. Ke3 {[%emt 0:00:07]} Nc6 {[%emt 0:00:20]} 33. Nc2 {[%emt 0:00:50]} Ne5 {[%emt 0:05:12]} 34. h3 {[%emt 0:00:24]} Ne6 {[%emt 0:00:36]} 35. Na3 {[%emt 0:01:12]} Nc7 {[%emt 0:01:17]} 36. Nc2 {[%emt 0:00:26]} Ne6 {[%emt 0:02:29]} 37. Na3 {[%emt 0:00:04]} Nc7 {[%emt 0:00:09]} 38. Nc2 {[%emt 0:00:41]} Nc6 {[%emt 0:01:07]} 39. a4 {[%emt 0:00:24]} Ne6 {[%emt 0:02:14]} 40. Be2 {[%emt 0:00:48]} Nf4 {[%emt 0:31:10]} 41. Bf1 {[%emt 0:30:12]} h4 {[%emt 0:00:00]} 42. a5 {[%emt 0:00:00]} Ne6 {[%emt 0:00:00]} 43. a6 {[%emt 0:00:00]} Ne5 {[%emt 0:00:00]} 44. Na3 {[%emt 0:00:00]} Nc7 {[%emt 0:00:00]} 45. Be2 {[%emt 0:00:00]} Kc6 {[%emt 0:00:00]} 46. Kd4 {[%emt 0:00:00]} g4 {[%emt 0:00:00]} 47. hxg4 {[%emt 0:01:06]} h3 {[%emt 0:00:00]} 48. Bf1 {[%emt 0:00:10]} h2 {[%emt 0:00:00]} 49. Bg2 {[%emt 0:00:34]} Nb5+ {[%emt 0:00:28]} 50. Nxb5 {[%emt 0:00:33]} Kxb5 {[%emt 0:00:03]} 51. g5 {[%emt 0:01:42]} Nc6+ {[%emt 0:00:49]} 52. Kd5 {[%emt 0:00:10]} Nxb4+ {[%emt 0:04:27]} 53. Kd6 {[%emt 0:00:01]} fxg5 {[%emt 0:00:30]} 54. e5 {[%emt 0:00:00]} Nxa6 {[%emt 0:00:23]} 55. Ke6 {[%emt 0:02:38]} Nc7+ {[%emt 0:00:27]} 56. Kf5 {[%emt 0:00:11]} a5 {[%emt 0:00:17]} 57. Ke4 {[%emt 0:01:29]} Kc4 {[%emt 0:00:16]} 58. Kf3 {[%emt 0:00:34]} a4 {[%emt 0:00:30]} 59. Bf1+ {[%emt 0:00:21]} Kc3 {[%emt 0:00:14]} 0-1

[Event "SVK Extraliga 2017-18"]
[Site "Slovakia"]
[Date "2017.10.01"]
[Round "2"]
[White "Lembak, Jurij"]
[Black "Gulbis, Adrian"]
[Result "1-0"]
[ECO "D24"]
[WhiteElo "2204"]
[BlackElo "2108"]
[Annotator "NA"]
[PlyCount "137"]
[EventDate "2017.09.30"]
[EventType "team-tourn"]
[EventCountry "SVK"]
[SourceTitle "playchess.com"]
[Source "ChessBase"]
[SourceQuality "1"]
[TimeControl "40/5400+30:1800+30"]

1. d4 {[%emt 0:00:00]} d5 {[%emt 0:00:20]} 2. Nf3 {[%emt 0:00:01]} Nf6 {[%emt 0:00:14]} 3. c4 {[%emt 0:01:06]} dxc4 {[%emt 0:00:17]} 4. Nc3 {[%emt 0:01:20]} a6 {[%emt 0:04:54]} 5. a4 {[%emt 0:01:37]} e6 {[%emt 0:03:15]} 6. e3 {[%emt 0:03:26]} c5 {[%emt 0:00:27]} 7. Bxc4 {[%emt 0:01:54]} Nc6 {[%emt 0:00:45]} 8. O-O {[%emt 0:00:28]} Be7 {[%emt 0:01:27]} 9. Qe2 {[%emt 0:02:52]} cxd4 {[%emt 0:01:37]} 10. Rd1 {[%emt 0:00:34]} O-O {[%emt 0:00:50]} 11. exd4 {[%emt 0:03:01]} Nb4 {[%emt 0:10:57]} 12. Bg5 {[%emt 0:03:59]} Nbd5 {[%emt 0:01:17]} 13. Ne5 {[%emt 0:01:57]} Nxc3 {[%emt 0:02:47]} 14. bxc3 {[%emt 0:01:33]} Nd5 {[%emt 0:04:41]} 15. Bd2 {[%emt 0:02:45]} Bf6 {[%emt 0:02:30]} 16. Bd3 {[%emt 0:11:41]} Ne7 {[%emt 0:06:30]} 17. Ng4 {[%emt 0:01:46]} Ng6 {[%emt 0:00:43]} 18. Nxf6+ {[%emt 0:03:55]} Qxf6 {[%emt 0:00:11]} 19. Be4 {[%emt 0:01:12]} Rd8 {[%emt 0:01:54]} 20. Qh5 {[%emt 0:01:46]} h6 {[%emt 0:01:24]} 21. a5 {[%emt 0:05:03]} Nf4 {[%emt 0:11:45]} 22. Qf3 {[%emt 0:02:39]} Nd5 {[%emt 0:00:40]} 23. Qg3 {[%emt 0:03:12]} Ne7 {[%emt 0:12:45]} 24. Rab1 {[%emt 0:07:56]} Nf5 {[%emt 0:04:04]} 25. Bxf5 {[%emt 0:03:47]} Qxf5 {[%emt 0:03:47]} 26. Bxh6 {[%emt 0:01:36]} Qh7 {[%emt 0:03:41]} 27. Bg5 {[%emt 0:01:46]} Rd5 {[%emt 0:01:48]} 28. Ra1 {[%emt 0:12:31]} Qg6 {[%emt 0:03:27]} 29. h4 {[%emt 0:03:26]} f6 {[%emt 0:02:22]} 30. c4 {[%emt 0:04:02]} Rd8 {[%emt 0:02:53]} 31. Bf4 {[%emt 0:01:14]} Qxg3 32. Bxg3 {[%emt 0:00:18]} Bd7 {[%emt 0:00:39]} 33. d5 {[%emt 0:01:13]} exd5 34. cxd5 {[%emt 0:00:14]} Rac8 {[%emt 0:02:58]} 35. Rab1 {[%emt 0:02:20]} Bb5 {[%emt 0:00:29]} 36. f3 {[%emt 0:03:14]} Rc2 {[%emt 0:01:07]} 37. Bf2 {[%emt 0:02:40]} Re8 {[%emt 0:01:50]} 38. Re1 {[%emt 0:01:51]} Ree2 {[%emt 0:03:39]} 39. Rxe2 {[%emt 0:00:19]} Rxe2 {[%emt 0:00:04]} 40. Rd1 {[%emt 0:01:28]} Kf7 {[%emt 0:34:20]} 41. Bg3 {[%emt 0:30:54]} Re7 {[%emt 0:00:00]} 42. Rc1 {[%emt 0:00:00]} Rd7 {[%emt 0:00:00]} 43. Rc5 {[%emt 0:00:00]} Re7 {[%emt 0:00:00]} 44. Kh2 {[%emt 0:00:00]} Kg6 {[%emt 0:00:00]} 45. h5+ {[%emt 0:00:00]} Kh7 {[%emt 0:00:00]} 46. Bf4 {[%emt 0:00:00]} Kg8 {[%emt 0:00:00]} 47. Rc8+ {[%emt 0:00:00]} Kh7 {[%emt 0:00:00]} 48. d6 {[%emt 0:00:00]} Rf7 {[%emt 0:00:00]} 49. Kg1 {[%emt 0:00:00]} Bc6 {[%emt 0:00:00]} 50. Kf2 {[%emt 0:00:00]} g6 {[%emt 0:00:00]} 51. g4 {[%emt 0:00:00]} f5 {[%emt 0:01:41]} 52. hxg6+ {[%emt 0:01:17]} Kxg6 {[%emt 0:00:10]} 53. g5 {[%emt 0:00:08]} Rh7 {[%emt 0:02:11]} 54. Rc7 {[%emt 0:02:50]} Rd7 {[%emt 0:01:03]} 55. Ke3 {[%emt 0:01:41]} Kf7 {[%emt 0:02:17]} 56. Rxd7+ {[%emt 0:01:42]} Bxd7 {[%emt 0:00:03]} 57. Be5 {[%emt 0:00:09]} Ke6 {[%emt 0:00:31]} 58. g6 {[%emt 0:00:57]} Be8 {[%emt 0:00:31]} 59. g7 {[%emt 0:00:21]} Bf7 {[%emt 0:00:09]} 60. Kf4 {[%emt 0:00:15]} Bg8 {[%emt 0:00:19]} 61. Kg5 {[%emt 0:00:17]} Bh7 {[%emt 0:00:49]} 62. Kh6 {[%emt 0:00:24]} Bg8 {[%emt 0:00:07]} 63. Kg6 {[%emt 0:00:16]} Kd7 {[%emt 0:01:11]} 64. Kxf5 {[%emt 0:00:13]} Bf7 {[%emt 0:00:33]} 65. Kf6 {[%emt 0:00:24]} Bd5 {[%emt 0:00:13]} 66. f4 {[%emt 0:00:10]} Be6 {[%emt 0:00:15]} 67. f5 {[%emt 0:00:13]} Bd5 {[%emt 0:00:11]} 68. Kg6 {[%emt 0:00:17]} Bg8 {[%emt 0:00:06]} 69. Bf4 {[%emt 0:00:31]} 1-0

[Event "SVK Extraliga 2017-18"]
[Site "Slovakia"]
[Date "2017.10.01"]
[Round "2"]
[White "Najgebauer, Szemjon"]
[Black "Szucs, Vladimir"]
[Result "*"]
[ECO "D85"]
[WhiteElo "2202"]
[BlackElo "2125"]
[Annotator "ChessBase"]
[PlyCount "21"]
[EventDate "2017.09.30"]
[EventType "team-tourn"]
[EventCountry "SVK"]
[SourceTitle "playchess.com"]
[Source "ChessBase"]
[SourceQuality "1"]
[TimeControl "40/5400+30:1800+30"]

1. d4 {[%emt 0:00:00]} Nf6 {[%emt 0:00:16]} 2. c4 {[%emt 0:00:03]} g6 {[%emt 0:00:10]} 3. Nc3 {[%emt 0:00:14]} d5 {[%emt 0:00:24]} 4. cxd5 {[%emt 0:00:25]} Nxd5 {[%emt 0:00:06]} 5. e4 {[%emt 0:00:04]} Nxc3 {[%emt 0:00:08]} 6. bxc3 {[%emt 0:00:03]} Bg7 {[%emt 0:00:06]} 7. Be3 {[%emt 0:00:05]} c5 {[%emt 0:00:55]} 8. Qd2 {[%emt 0:04:43]} O-O {[%emt 0:03:09]} 9. Nf3 {[%emt 0:00:09]} cxd4 {[%emt 0:03:47]} 10. cxd4 {[%emt 0:00:06]} Nc6 {[%emt 0:00:06]} 11. Rd1 {[%emt 0:01:43]} *

[Event "SVK Extraliga 2017-18"]
[Site "Slovakia"]
[Date "2017.10.01"]
[Round "2"]
[White "Hros, Roman"]
[Black "Lisko, Frantisek"]
[Result "1-0"]
[ECO "A13"]
[WhiteElo "2181"]
[BlackElo "2251"]
[Annotator "NA"]
[PlyCount "63"]
[EventDate "2017.09.30"]
[EventType "team-tourn"]
[EventCountry "SVK"]
[SourceTitle "playchess.com"]
[Source "ChessBase"]
[SourceQuality "1"]
[TimeControl "40/5400+30:1800+30"]

1. Nf3 {[%emt 0:00:00]} Nf6 {[%emt 0:00:12]} 2. c4 {[%emt 0:00:00]} e6 {[%emt 0:01:01]} 3. g3 {[%emt 0:02:02]} d5 {[%emt 0:01:14]} 4. Bg2 {[%emt 0:00:22]} dxc4 {[%emt 0:01:39]} 5. Qa4+ {[%emt 0:04:46]} Nbd7 {[%emt 0:00:40]} 6. O-O {[%emt 0:02:44]} c5 {[%emt 0:01:48]} 7. Qxc4 {[%emt 0:06:11]} a6 {[%emt 0:01:45]} 8. Qc2 {[%emt 0:02:28]} Be7 {[%emt 0:01:12] A13: Reti-Eröffnung} (8... b5 9. a4 Bb7 10. Nc3 Qb6 11. d3 Be7 12. axb5 axb5 13. Rxa8+ Bxa8 14. Qb3 Nd5 15. Bg5 Nxc3 16. Qxc3 f6 17. Bd2 O-O 18. Ra1 Bb7 19. Ne1 Bxg2 20. Nxg2 {1-0 (53) Aronian,L (2797)-Wojtaszek,R (2744) Beijing 2014}) 9. b3 {[%emt 0:01:30]} O-O {[%emt 0:02:40]} 10. Bb2 {[%emt 0:00:01]} Nd5 {[%emt 0:02:21]} 11. Nc3 {[%emt 0:02:00]} Nb4 {[%emt 0:02:57]} 12. Qb1 {[%emt 0:02:47]} Nf6 $146 {[%emt 0:02:44]} ({Vorgänger:} 12... Rb8 13. d4 Nf6 14. Rd1 cxd4 15. Rxd4 Qc7 16. Rc4 {1-0 (39) Pastircak,M (2363)-Dorfanis,I (2121) Aghios Kirykos 2016}) 13. Rd1 {[%emt 0:07:53]} Nc6 {[%emt 0:01:46]} 14. e3 {[%emt 0:26:09]} e5 {[%emt 0:01:02]} 15. h3 {[%emt 0:00:48]} Kh8 {[%emt 0:14:43]} 16. Kh2 {[%emt 0:10:51]} h6 {[%emt 0:02:10]} 17. Kg1 {[%emt 0:00:47]} Be6 {[%emt 0:00:33]} 18. d4 {[%emt 0:02:18]} cxd4 {[%emt 0:01:46]} 19. exd4 {[%emt 0:00:10]} exd4 {[%emt 0:00:45]} 20. Ne2 {[%emt 0:04:45]} Qc8 {[%emt 0:03:37]} 21. Nf4 {[%emt 0:06:18]} Bf5 {[%emt 0:04:46]} 22. Qc1 $14 {[%emt 0:00:03]} g5 {[%emt 0:01:53]} 23. g4 {[%emt 0:03:53]} gxf4 {[%emt 0:02:08]} 24. Qxf4 {[%emt 0:00:33]} Bh7 {[%emt 0:05:59]} 25. Nxd4 {[%emt 0:03:13]} Kg7 {[%emt 0:06:44]} 26. Nxc6 {[%emt 0:04:22]} bxc6 {[%emt 0:00:51]} 27. Rd6 {[%emt 0:00:43]} Bf5 {[%emt 0:07:30]} 28. Rxc6 {[%emt 0:03:05]} Qd7 {[%emt 0:00:50]} 29. gxf5 {[%emt 0:01:49]} Qd8 {[%emt 0:08:25]} 30. Re1 {[%emt 0:01:04]} Kh7 {[%emt 0:01:56]} 31. Rxe7 {[%emt 0:00:40]} Qxe7 {[%emt 0:00:30]} 32. Rxf6 {[%emt 0:00:05]} 1-0

[Event "SVK Extraliga 2017-18"]
[Site "Slovakia"]
[Date "2017.10.01"]
[Round "2"]
[White "Borik, Juraj"]
[Black "Sepesi, Samuel"]
[Result "0-1"]
[ECO "B26"]
[WhiteElo "2164"]
[BlackElo "2183"]
[Annotator "NA"]
[PlyCount "60"]
[EventDate "2017.09.30"]
[EventType "team-tourn"]
[EventCountry "SVK"]
[SourceTitle "playchess.com"]
[Source "ChessBase"]
[SourceQuality "1"]
[TimeControl "40/5400+30:1800+30"]

1. e4 {[%emt 0:00:00]} c5 {[%emt 0:00:05]} 2. Nc3 {[%emt 0:00:00]} Nc6 {[%emt 0:00:05]} 3. g3 {[%emt 0:00:23]} g6 {[%emt 0:00:05]} 4. Bg2 {[%emt 0:00:17]} Bg7 {[%emt 0:00:06]} 5. Nge2 {[%emt 0:00:38]} d6 {[%emt 0:00:13]} 6. d3 {[%emt 0:02:04]} e5 {[%emt 0:00:06]} 7. Be3 {[%emt 0:02:53]} Nge7 {[%emt 0:00:07]} 8. Qd2 {[%emt 0:01:01]} O-O {[%emt 0:00:23]} 9. Bh6 {[%emt 0:01:47]} Rb8 {[%emt 0:07:16]} 10. h4 {[%emt 0:02:06]} f6 {[%emt 0:14:57]} 11. Bxg7 {[%emt 0:02:44]} Kxg7 {[%emt 0:00:10]} 12. Nd5 {[%emt 0:04:36]} h5 {[%emt 0:08:42]} 13. O-O-O {[%emt 0:03:07]} Nxd5 {[%emt 0:09:07]} 14. exd5 {[%emt 0:00:14]} Ne7 {[%emt 0:00:12]} 15. Kb1 {[%emt 0:05:05]} b5 {[%emt 0:00:52]} 16. f3 {[%emt 0:01:50]} Nxd5 {[%emt 0:07:45]} 17. g4 {[%emt 0:00:32]} Rh8 {[%emt 0:01:26]} 18. gxh5 {[%emt 0:05:04]} Rxh5 {[%emt 0:00:08]} 19. f4 {[%emt 0:00:44]} Nxf4 {[%emt 0:15:31]} 20. Nxf4 {[%emt 0:00:49]} exf4 {[%emt 0:00:05]} 21. Qxf4 {[%emt 0:00:40]} Qe7 {[%emt 0:00:59]} 22. Rde1 {[%emt 0:03:15]} Re5 {[%emt 0:02:56]} 23. Reg1 {[%emt 0:00:10]} Rf5 {[%emt 0:03:59]} 24. Qg3 {[%emt 0:02:13]} Qe5 {[%emt 0:02:02]} 25. Be4 {[%emt 0:02:10]} Rf1+ {[%emt 0:00:18]} 26. Rxf1 {[%emt 0:00:22]} Qxg3 {[%emt 0:00:06]} 27. Rfg1 {[%emt 0:00:36]} Qe5 {[%emt 0:06:36]} 28. Bxg6 {[%emt 0:01:07]} Bb7 {[%emt 0:04:19]} 29. Rh3 {[%emt 0:00:28]} Kh6 {[%emt 0:00:29]} 30. Bf7 {[%emt 0:04:22]} Bg2 {[%emt 0:00:25]} 0-1